[Event "*** SCC Grand Prix: Titled Tuesday Blitz"]
[Site "Chess.com"]
[Date "2020.07.21"]
[Round "4"]
[White "andy_rekt"]
[Black "MashaFromRussia"]
[Result "1-0"]
[WhiteElo "2237"]
[BlackElo "2397"]
[TimeControl "180+1"]
[EndTime "10:33:19 PDT"]
[Termination "andy_rekt won by resignation"]

1. d4 {[%clk 0:03:00.9]} 1... Nf6 {[%clk 0:02:59.8]} 2. c4 {[%clk 0:03:01.4]}
2... g6 {[%clk 0:02:59.7]} 3. Nc3 {[%clk 0:03:02]} 3... Bg7 {[%clk 0:03:00.2]}
4. e4 {[%clk 0:03:01.4]} 4... d6 {[%clk 0:03:00.5]} 5. Nge2 {[%clk 0:03:00.8]}
5... O-O {[%clk 0:03:00.1]} 6. Ng3 {[%clk 0:02:59.8]} 6... c5 {[%clk 0:02:59.2]}
7. d5 {[%clk 0:02:59.6]} 7... e6 {[%clk 0:02:59.4]} 8. Be2 {[%clk 0:02:59.2]}
8... exd5 {[%clk 0:02:59.5]} 9. cxd5 {[%clk 0:03:00.1]} 9... Na6 {[%clk
0:02:58.5]} 10. O-O {[%clk 0:03:00.1]} 10... Nc7 {[%clk 0:02:58.8]} 11. Bg5
{[%clk 0:03:00.7]} 11... Re8 {[%clk 0:02:57.4]} 12. Qd2 {[%clk 0:03:00.3]} 12...
a6 {[%clk 0:02:56]} 13. a4 {[%clk 0:03:00]} 13... Rb8 {[%clk 0:02:56.2]} 14. f4
{[%clk 0:02:54.8]} 14... b5 {[%clk 0:02:49.5]} 15. axb5 {[%clk 0:02:53.5]} 15...
axb5 {[%clk 0:02:48.8]} 16. e5 {[%clk 0:02:53.9]} 16... dxe5 {[%clk 0:02:45.8]}
17. d6 {[%clk 0:02:50.6]} 17... exf4 {[%clk 0:02:32.4]} 18. dxc7 {[%clk
0:02:38.7]} 18... Qxd2 {[%clk 0:02:25.1]} 19. cxb8=Q {[%clk 0:02:36.6]} 19...
Bg4 {[%clk 0:02:21.3]} 20. Qxf4 {[%clk 0:02:33]} 1-0

[Event "*** SCC Grand Prix: Titled Tuesday Blitz"]
[Site "Chess.com"]
[Date "2020.07.21"]
[Round "4"]
[White "chessfrendz"]
[Black "Gulkov_Igor"]
[Result "1-0"]
[WhiteElo "2261"]
[BlackElo "2394"]
[TimeControl "180+1"]
[EndTime "10:33:24 PDT"]
[Termination "chessfrendz won by resignation"]

1. d4 {[%clk 0:03:00.9]} 1... Nf6 {[%clk 0:02:58.9]} 2. Nf3 {[%clk 0:03:01.3]}
2... g6 {[%clk 0:02:58.3]} 3. c4 {[%clk 0:03:00.3]} 3... Bg7 {[%clk 0:02:57.6]}
4. Nc3 {[%clk 0:03:00.9]} 4... d6 {[%clk 0:02:57.3]} 5. e4 {[%clk 0:03:00.5]}
5... O-O {[%clk 0:02:56.6]} 6. Be2 {[%clk 0:03:01]} 6... e5 {[%clk 0:02:56]} 7.
O-O {[%clk 0:03:01.2]} 7... Nc6 {[%clk 0:02:54.9]} 8. d5 {[%clk 0:03:01.6]} 8...
Ne7 {[%clk 0:02:54.3]} 9. Ne1 {[%clk 0:03:01.4]} 9... Nd7 {[%clk 0:02:53.3]} 10.
Be3 {[%clk 0:03:00.9]} 10... f5 {[%clk 0:02:52.4]} 11. f3 {[%clk 0:03:01.5]}
11... f4 {[%clk 0:02:49.3]} 12. Bf2 {[%clk 0:03:02]} 12... g5 {[%clk 0:02:48.8]}
13. a4 {[%clk 0:03:02.4]} 13... a5 {[%clk 0:02:47.1]} 14. Nd3 {[%clk 0:03:02.2]}
14... b6 {[%clk 0:02:43.2]} 15. Nb5 {[%clk 0:02:59.8]} 15... Nf6 {[%clk
0:02:40.2]} 16. b4 {[%clk 0:02:58.3]} 16... axb4 {[%clk 0:02:38.9]} 17. Nxb4
{[%clk 0:02:58.2]} 17... g4 {[%clk 0:02:38.2]} 18. Nc6 {[%clk 0:02:56.9]} 18...
Nxc6 {[%clk 0:02:37.4]} 19. dxc6 {[%clk 0:02:56.4]} 19... g3 {[%clk 0:02:36.1]}
20. hxg3 {[%clk 0:02:55.4]} 20... Nh5 {[%clk 0:02:35.5]} 21. gxf4 {[%clk
0:02:41.5]} 21... exf4 {[%clk 0:02:34.6]} 22. Qd5+ {[%clk 0:02:41.1]} 1-0

[Event "*** SCC Grand Prix: Titled Tuesday Blitz"]
[Site "Chess.com"]
[Date "2020.07.21"]
[Round "4"]
[White "OnePeculiarConundrum"]
[Black "Skatchkov_V"]
[Result "0-1"]
[WhiteElo "2344"]
[BlackElo "2588"]
[TimeControl "180+1"]
[EndTime "10:33:29 PDT"]
[Termination "Skatchkov_V won by resignation"]

1. e4 {[%clk 0:03:00.9]} 1... e5 {[%clk 0:02:59.2]} 2. Nf3 {[%clk 0:03:00.4]}
2... Nf6 {[%clk 0:02:59.5]} 3. Nxe5 {[%clk 0:02:59.3]} 3... d6 {[%clk
0:02:59.8]} 4. Nf3 {[%clk 0:02:59.1]} 4... Nxe4 {[%clk 0:03:00.4]} 5. d4 {[%clk
0:02:59]} 5... d5 {[%clk 0:03:00.8]} 6. Bd3 {[%clk 0:02:58.6]} 6... Bd6 {[%clk
0:03:01.3]} 7. O-O {[%clk 0:02:57.7]} 7... O-O {[%clk 0:03:02.2]} 8. c4 {[%clk
0:02:53.3]} 8... c6 {[%clk 0:03:02.9]} 9. Re1 {[%clk 0:02:50.8]} 9... Bf5 {[%clk
0:02:59.2]} 10. Nbd2 {[%clk 0:02:21.4]} 10... Nxf2 {[%clk 0:02:58.6]} 11. Kxf2
{[%clk 0:02:17.1]} 11... Bxd3 {[%clk 0:02:58.8]} 12. cxd5 {[%clk 0:02:14]} 12...
cxd5 {[%clk 0:02:59.7]} 13. Nb3 {[%clk 0:02:09.2]} 13... Be4 {[%clk 0:02:58.2]}
14. Bg5 {[%clk 0:02:07.7]} 14... Bxf3 {[%clk 0:02:52.6]} 0-1

[Event "*** SCC Grand Prix: Titled Tuesday Blitz"]
[Site "Chess.com"]
[Date "2020.07.21"]
[Round "4"]
[White "IANOV0007"]
[Black "Jojo_1608"]
[Result "1-0"]
[WhiteElo "2421"]
[BlackElo "2241"]
[TimeControl "180+1"]
[EndTime "10:33:32 PDT"]
[Termination "IANOV0007 won by resignation"]

1. Nf3 {[%clk 0:03:00.9]} 1... Nf6 {[%clk 0:02:58.7]} 2. g3 {[%clk 0:03:00.8]}
2... g6 {[%clk 0:02:58]} 3. b3 {[%clk 0:02:59.8]} 3... Bg7 {[%clk 0:02:57.6]} 4.
Bb2 {[%clk 0:02:59.8]} 4... O-O {[%clk 0:02:57.5]} 5. Bg2 {[%clk 0:02:59.7]}
5... d6 {[%clk 0:02:57]} 6. d4 {[%clk 0:02:59.6]} 6... c5 {[%clk 0:02:53.2]} 7.
O-O {[%clk 0:02:57.9]} 7... Qc7 {[%clk 0:02:41.2]} 8. c4 {[%clk 0:02:56.4]} 8...
Bg4 {[%clk 0:02:31.9]} 9. Nc3 {[%clk 0:02:53.3]} 9... Nc6 {[%clk 0:02:29.9]} 10.
d5 {[%clk 0:02:48.8]} 10... Ne5 {[%clk 0:02:12.8]} 11. Nd2 {[%clk 0:02:47.5]}
11... a6 {[%clk 0:02:06.1]} 12. h3 {[%clk 0:02:46.1]} 12... Bf5 {[%clk
0:02:04.9]} 13. f4 {[%clk 0:02:40.5]} 13... Ned7 {[%clk 0:01:53.4]} 14. e4
{[%clk 0:02:37.1]} 1-0

[Event "*** SCC Grand Prix: Titled Tuesday Blitz"]
[Site "Chess.com"]
[Date "2020.07.21"]
[Round "4"]
[White "GiantThresher"]
[Black "LuisFSiles"]
[Result "0-1"]
[WhiteElo "2469"]
[BlackElo "2340"]
[TimeControl "180+1"]
[EndTime "10:33:50 PDT"]
[Termination "LuisFSiles won by resignation"]

1. e4 {[%clk 0:03:00.9]} 1... c5 {[%clk 0:02:57.3]} 2. Nc3 {[%clk 0:03:00.7]}
2... Nc6 {[%clk 0:02:56.8]} 3. Bb5 {[%clk 0:03:00.3]} 3... Nd4 {[%clk
0:02:56.3]} 4. Nf3 {[%clk 0:03:00.3]} 4... Nxb5 {[%clk 0:02:52.3]} 5. Nxb5
{[%clk 0:03:01.2]} 5... g6 {[%clk 0:02:48.9]} 6. d4 {[%clk 0:03:01]} 6... Bg7
{[%clk 0:02:46.8]} 7. e5 {[%clk 0:02:43.3]} 7... Nh6 {[%clk 0:02:25.5]} 8. dxc5
{[%clk 0:02:35.9]} 8... Qa5+ {[%clk 0:02:07.6]} 9. Nc3 {[%clk 0:02:35.3]} 9...
Qxc5 {[%clk 0:01:59]} 10. Qd5 {[%clk 0:02:34.3]} 10... d6 {[%clk 0:01:47.1]} 11.
exd6 {[%clk 0:02:26.2]} 11... Bxc3+ {[%clk 0:01:40.4]} 0-1

[Event "*** SCC Grand Prix: Titled Tuesday Blitz"]
[Site "Chess.com"]
[Date "2020.07.21"]
[Round "4"]
[White "Caterpiller35"]
[Black "ZverevLev"]
[Result "0-1"]
[WhiteElo "2445"]
[BlackElo "2326"]
[TimeControl "180+1"]
[EndTime "10:34:06 PDT"]
[Termination "ZverevLev won by resignation"]

1. d4 {[%clk 0:03:00]} 1... Nf6 {[%clk 0:02:54.8]} 2. Bg5 {[%clk 0:02:59.8]}
2... Ne4 {[%clk 0:02:51.2]} 3. Bf4 {[%clk 0:02:59.9]} 3... c5 {[%clk 0:02:50.3]}
4. f3 {[%clk 0:03:00.1]} 4... Nf6 {[%clk 0:02:48.9]} 5. dxc5 {[%clk 0:02:59.3]}
5... e5 {[%clk 0:02:46.8]} 6. Bxe5 {[%clk 0:02:58.5]} 6... Bxc5 {[%clk
0:02:46.1]} 7. Bd4 {[%clk 0:02:52.3]} 7... Qb6 {[%clk 0:02:24.4]} 8. Bxc5 {[%clk
0:02:51.6]} 8... Qxc5 {[%clk 0:02:25.3]} 9. Nc3 {[%clk 0:02:47.9]} 9... d5
{[%clk 0:02:23.9]} 10. e4 {[%clk 0:02:19.8]} 10... dxe4 {[%clk 0:02:21.9]} 11.
Bb5+ {[%clk 0:02:18.2]} 11... Bd7 {[%clk 0:02:20.8]} 12. Bxd7+ {[%clk
0:02:13.6]} 12... Nbxd7 {[%clk 0:02:21.7]} 13. Qe2 {[%clk 0:02:09.1]} 13... O-O
{[%clk 0:02:19.9]} 14. O-O-O {[%clk 0:02:09.3]} 14... b5 {[%clk 0:02:11.7]} 15.
Nxe4 {[%clk 0:02:06.9]} 15... Nxe4 {[%clk 0:02:10.7]} 16. Qxe4 {[%clk 0:02:07]}
16... Nf6 {[%clk 0:02:07.7]} 17. Ne2 {[%clk 0:02:03.2]} 17... Nxe4 {[%clk
0:02:06.1]} 0-1

[Event "*** SCC Grand Prix: Titled Tuesday Blitz"]
[Site "Chess.com"]
[Date "2020.07.21"]
[Round "4"]
[White "Semen_Khanin"]
[Black "Riptide27"]
[Result "1-0"]
[WhiteElo "2730"]
[BlackElo "2511"]
[TimeControl "180+1"]
[EndTime "10:34:20 PDT"]
[Termination "Semen_Khanin won by resignation"]

1. e4 {[%clk 0:03:00.9]} 1... c5 {[%clk 0:02:59.4]} 2. Nf3 {[%clk 0:03:00.7]}
2... e6 {[%clk 0:02:59.9]} 3. d4 {[%clk 0:03:01.3]} 3... cxd4 {[%clk 0:03:00.8]}
4. Nxd4 {[%clk 0:03:02]} 4... a6 {[%clk 0:03:01.4]} 5. c4 {[%clk 0:03:01.5]}
5... Nf6 {[%clk 0:03:00.2]} 6. Nc3 {[%clk 0:03:01.9]} 6... Bb4 {[%clk
0:02:58.8]} 7. Qd3 {[%clk 0:03:02.1]} 7... d6 {[%clk 0:02:55.8]} 8. Be2 {[%clk
0:02:56.1]} 8... Nbd7 {[%clk 0:02:54.9]} 9. Nc2 {[%clk 0:02:56.1]} 9... Nc5
{[%clk 0:02:52.4]} 10. Qe3 {[%clk 0:02:50]} 10... Bxc3+ {[%clk 0:02:51.9]} 11.
Qxc3 {[%clk 0:02:50.1]} 11... Ncxe4 {[%clk 0:02:51.3]} 12. Qd4 {[%clk
0:02:50.5]} 12... O-O {[%clk 0:02:31.7]} 13. f3 {[%clk 0:02:49.3]} 13... Nc5
{[%clk 0:02:28.7]} 14. b4 {[%clk 0:02:49.4]} 14... Na4 {[%clk 0:02:27.6]} 15.
Bg5 {[%clk 0:02:38.5]} 15... h6 {[%clk 0:02:25.8]} 16. Bh4 {[%clk 0:02:35.8]}
16... e5 {[%clk 0:02:23.8]} 17. Qd2 {[%clk 0:02:35.4]} 17... Be6 {[%clk
0:01:57.5]} 18. Ne3 {[%clk 0:02:32.6]} 18... Ne4 {[%clk 0:01:51.7]} 19. Bxd8
{[%clk 0:02:29.1]} 19... Nxd2 {[%clk 0:01:51.5]} 20. Be7 {[%clk 0:02:29.5]}
20... Rfe8 {[%clk 0:01:50.3]} 21. Bxd6 {[%clk 0:02:19.9]} 21... Rad8 {[%clk
0:01:49.4]} 22. c5 {[%clk 0:02:20.3]} 1-0

[Event "*** SCC Grand Prix: Titled Tuesday Blitz"]
[Site "Chess.com"]
[Date "2020.07.21"]
[Round "4"]
[White "TudorAnton"]
[Black "Dedic8"]
[Result "0-1"]
[WhiteElo "2517"]
[BlackElo "2764"]
[TimeControl "180+1"]
[EndTime "10:34:46 PDT"]
[Termination "Dedic8 won by resignation"]

1. d4 {[%clk 0:03:00.9]} 1... Nf6 {[%clk 0:02:59.9]} 2. c4 {[%clk 0:02:59.2]}
2... g6 {[%clk 0:03:00.4]} 3. Nf3 {[%clk 0:02:58.4]} 3... Bg7 {[%clk 0:03:00.5]}
4. g3 {[%clk 0:02:57.7]} 4... O-O {[%clk 0:03:00.8]} 5. Bg2 {[%clk 0:02:56.9]}
5... c6 {[%clk 0:03:01.7]} 6. O-O {[%clk 0:02:55.5]} 6... d5 {[%clk 0:03:02.6]}
7. b3 {[%clk 0:02:56.1]} 7... a5 {[%clk 0:03:03]} 8. Bb2 {[%clk 0:02:54.4]} 8...
a4 {[%clk 0:03:03]} 9. Nbd2 {[%clk 0:02:53.6]} 9... Qa5 {[%clk 0:03:03.2]} 10.
e3 {[%clk 0:02:51.8]} 10... a3 {[%clk 0:02:58]} 11. Bc1 {[%clk 0:02:51.2]} 11...
Qc3 {[%clk 0:02:58.4]} 12. Rb1 {[%clk 0:02:36.9]} 12... Bf5 {[%clk 0:02:58.3]}
13. e4 {[%clk 0:02:36.1]} 13... Nxe4 {[%clk 0:02:58.2]} 14. Nxe4 {[%clk
0:02:34]} 14... Bxe4 {[%clk 0:02:51.4]} 15. Bd2 {[%clk 0:02:33]} 15... Qc2
{[%clk 0:02:51.2]} 16. Qxc2 {[%clk 0:02:28.1]} 16... Bxc2 {[%clk 0:02:52.1]} 17.
Rbc1 {[%clk 0:02:27.1]} 17... Be4 {[%clk 0:02:52.7]} 18. Bb4 {[%clk 0:02:22.2]}
18... Re8 {[%clk 0:02:49.3]} 19. Rfe1 {[%clk 0:02:21.7]} 19... e6 {[%clk
0:02:45.1]} 20. cxd5 {[%clk 0:02:16.5]} 20... Bxd5 {[%clk 0:02:46]} 21. Ne5
{[%clk 0:02:15.8]} 21... Bxg2 {[%clk 0:02:39.6]} 22. Kxg2 {[%clk 0:02:16.7]}
22... Na6 {[%clk 0:02:35.2]} 23. Bxa3 {[%clk 0:02:14.2]} 23... Nc7 {[%clk
0:02:35.4]} 24. Nc4 {[%clk 0:02:04.4]} 24... Nb5 {[%clk 0:02:22.1]} 25. Bb4
{[%clk 0:01:44.8]} 25... Rxa2 {[%clk 0:02:21.9]} 26. Ra1 {[%clk 0:01:41]} 26...
Rea8 {[%clk 0:02:21.4]} 27. Rad1 {[%clk 0:01:38.8]} 27... Rd8 {[%clk 0:02:21.1]}
28. Be7 {[%clk 0:01:35.4]} 28... Rxd4 {[%clk 0:02:16.1]} 29. Rxd4 {[%clk
0:01:33.7]} 29... Bxd4 {[%clk 0:02:17]} 0-1

[Event "*** SCC Grand Prix: Titled Tuesday Blitz"]
[Site "Chess.com"]
[Date "2020.07.21"]
[Round "4"]
[White "JesseKraai"]
[Black "Bulldog167"]
[Result "0-1"]
[WhiteElo "2515"]
[BlackElo "2743"]
[TimeControl "180+1"]
[EndTime "10:34:54 PDT"]
[Termination "Bulldog167 won by resignation"]

1. Nf3 {[%clk 0:03:00.9]} 1... Nf6 {[%clk 0:02:58.9]} 2. c4 {[%clk 0:03:00.5]}
2... b6 {[%clk 0:02:59]} 3. g3 {[%clk 0:03:00]} 3... Bb7 {[%clk 0:02:59.5]} 4.
Bg2 {[%clk 0:03:00.6]} 4... c5 {[%clk 0:02:59.4]} 5. O-O {[%clk 0:03:01]} 5...
g6 {[%clk 0:02:59.6]} 6. Nc3 {[%clk 0:02:59.2]} 6... Bg7 {[%clk 0:02:59.9]} 7.
d4 {[%clk 0:02:59.5]} 7... cxd4 {[%clk 0:03:00.8]} 8. Qxd4 {[%clk 0:02:59.6]}
8... d6 {[%clk 0:03:01.3]} 9. Rd1 {[%clk 0:02:59.8]} 9... Nbd7 {[%clk
0:03:01.7]} 10. Be3 {[%clk 0:03:00]} 10... Rc8 {[%clk 0:03:01.6]} 11. Rac1
{[%clk 0:02:58.7]} 11... a6 {[%clk 0:03:01.7]} 12. b3 {[%clk 0:02:57.8]} 12...
O-O {[%clk 0:03:01.7]} 13. Qh4 {[%clk 0:02:57.2]} 13... Re8 {[%clk 0:03:02.2]}
14. Bh3 {[%clk 0:02:53.9]} 14... Ba8 {[%clk 0:03:00.5]} 15. g4 {[%clk
0:02:50.1]} 15... b5 {[%clk 0:03:00.6]} 16. g5 {[%clk 0:02:50.1]} 16... Nh5
{[%clk 0:03:00.5]} 17. Nd5 {[%clk 0:02:26.3]} 17... bxc4 {[%clk 0:02:46.6]} 18.
bxc4 {[%clk 0:02:22.5]} 18... e6 {[%clk 0:02:42.7]} 19. Nb4 {[%clk 0:02:15.5]}
19... Qa5 {[%clk 0:02:30.6]} 20. Rxd6 {[%clk 0:01:55.6]} 20... Bb7 {[%clk
0:02:28.8]} 21. Rxd7 {[%clk 0:01:47.4]} 21... Bxf3 {[%clk 0:02:24.9]} 22. exf3
{[%clk 0:01:40.5]} 22... Qxb4 {[%clk 0:02:24.5]} 23. Bf1 {[%clk 0:01:34.4]}
23... Qa4 {[%clk 0:02:01.1]} 24. Qe4 {[%clk 0:01:30.6]} 24... Qxd7 {[%clk
0:01:59.5]} 0-1

[Event "*** SCC Grand Prix: Titled Tuesday Blitz"]
[Site "Chess.com"]
[Date "2020.07.21"]
[Round "4"]
[White "Phriex"]
[Black "gagtemp"]
[Result "1-0"]
[WhiteElo "2374"]
[BlackElo "1974"]
[TimeControl "180+1"]
[EndTime "10:35:36 PDT"]
[Termination "Phriex won by resignation"]

1. d4 {[%clk 0:03:00.9]} 1... d5 {[%clk 0:02:59.1]} 2. c4 {[%clk 0:03:01.4]}
2... e6 {[%clk 0:02:58.7]} 3. Nf3 {[%clk 0:03:01.6]} 3... c5 {[%clk 0:02:58.5]}
4. cxd5 {[%clk 0:03:00.9]} 4... exd5 {[%clk 0:02:58.7]} 5. g3 {[%clk 0:03:01.4]}
5... Nc6 {[%clk 0:02:58.7]} 6. Bg2 {[%clk 0:03:01.3]} 6... Nf6 {[%clk 0:02:59]}
7. O-O {[%clk 0:03:01.3]} 7... Be7 {[%clk 0:02:59.5]} 8. Nc3 {[%clk 0:03:01.8]}
8... O-O {[%clk 0:02:59.9]} 9. Bg5 {[%clk 0:03:02.4]} 9... cxd4 {[%clk
0:02:53.7]} 10. Nxd4 {[%clk 0:03:03.3]} 10... h6 {[%clk 0:02:52.7]} 11. Bxf6
{[%clk 0:02:56.9]} 11... Bxf6 {[%clk 0:02:50]} 12. Nxc6 {[%clk 0:02:49.7]} 12...
bxc6 {[%clk 0:02:49]} 13. Rc1 {[%clk 0:02:50.2]} 13... Bg4 {[%clk 0:02:45.2]}
14. Na4 {[%clk 0:02:44.1]} 14... Rc8 {[%clk 0:02:28.6]} 15. b3 {[%clk
0:02:41.8]} 15... Be7 {[%clk 0:02:21.5]} 16. Qd3 {[%clk 0:02:34.2]} 16... Qd7
{[%clk 0:02:19.9]} 17. Nc5 {[%clk 0:02:32.7]} 17... Bxc5 {[%clk 0:02:19.6]} 18.
Rxc5 {[%clk 0:02:33.6]} 18... Bh3 {[%clk 0:02:16.6]} 19. Bxh3 {[%clk 0:02:29.8]}
19... Qxh3 {[%clk 0:02:15.4]} 20. Rfc1 {[%clk 0:02:30.4]} 20... Qe6 {[%clk
0:02:00.3]} 21. e3 {[%clk 0:02:27]} 21... Rc7 {[%clk 0:01:53.8]} 22. Rxd5 {[%clk
0:02:21.6]} 22... cxd5 {[%clk 0:01:39.9]} 23. Rxc7 {[%clk 0:02:21.2]} 23... a5
{[%clk 0:01:36]} 24. Rc5 {[%clk 0:02:20.7]} 24... Rd8 {[%clk 0:01:29.3]} 25.
Rxa5 {[%clk 0:02:17.9]} 25... h5 {[%clk 0:01:29.1]} 26. Qd4 {[%clk 0:02:13.3]}
26... g6 {[%clk 0:01:21.9]} 27. h4 {[%clk 0:02:11.9]} 27... Qf5 {[%clk 0:01:15]}
28. Ra7 {[%clk 0:02:02.8]} 28... g5 {[%clk 0:01:11.4]} 29. hxg5 {[%clk 0:02:01]}
29... Qxg5 {[%clk 0:01:08.2]} 30. Qh4 {[%clk 0:01:57.6]} 30... Qg6 {[%clk
0:01:05.7]} 31. Qxd8+ {[%clk 0:01:56.7]} 1-0

[Event "*** SCC Grand Prix: Titled Tuesday Blitz"]
[Site "Chess.com"]
[Date "2020.07.21"]
[Round "4"]
[White "KaspMagAlpha"]
[Black "a3aki"]
[Result "1-0"]
[WhiteElo "2222"]
[BlackElo "2021"]
[TimeControl "180+1"]
[EndTime "10:35:44 PDT"]
[Termination "KaspMagAlpha won by checkmate"]

1. d4 {[%clk 0:03:00.9]} 1... Nf6 {[%clk 0:02:59.7]} 2. c4 {[%clk 0:02:59.8]}
2... g6 {[%clk 0:03:00.6]} 3. g3 {[%clk 0:02:59.3]} 3... Bg7 {[%clk 0:03:01.5]}
4. Bg2 {[%clk 0:02:59.5]} 4... d6 {[%clk 0:03:02.4]} 5. Nf3 {[%clk 0:02:59.7]}
5... O-O {[%clk 0:03:03.3]} 6. O-O {[%clk 0:02:59.9]} 6... Nc6 {[%clk
0:03:04.2]} 7. Nc3 {[%clk 0:03:00.2]} 7... a6 {[%clk 0:03:05.1]} 8. Qd3 {[%clk
0:02:58]} 8... Na5 {[%clk 0:03:05.3]} 9. d5 {[%clk 0:02:47]} 9... c5 {[%clk
0:03:04.5]} 10. e4 {[%clk 0:02:45.6]} 10... Nd7 {[%clk 0:03:02.3]} 11. Rb1
{[%clk 0:02:38.5]} 11... Ne5 {[%clk 0:03:01.2]} 12. Nxe5 {[%clk 0:02:38.1]}
12... Bxe5 {[%clk 0:03:02.1]} 13. a3 {[%clk 0:02:30]} 13... b6 {[%clk
0:03:00.7]} 14. b4 {[%clk 0:02:27.4]} 14... Nb7 {[%clk 0:03:01.1]} 15. Bh6
{[%clk 0:02:23.8]} 15... Bg7 {[%clk 0:03:00.1]} 16. Bxg7 {[%clk 0:02:23.2]}
16... Kxg7 {[%clk 0:03:01]} 17. f4 {[%clk 0:02:23.2]} 17... a5 {[%clk
0:02:59.8]} 18. b5 {[%clk 0:02:21.4]} 18... e6 {[%clk 0:02:52.3]} 19. dxe6
{[%clk 0:02:18.2]} 19... Bxe6 {[%clk 0:02:52.2]} 20. f5 {[%clk 0:02:16.3]} 20...
Bd7 {[%clk 0:02:52.4]} 21. f6+ {[%clk 0:02:13.9]} 21... Kg8 {[%clk 0:02:53]} 22.
Qd2 {[%clk 0:02:13.8]} 22... Kh8 {[%clk 0:02:46.8]} 23. Qh6 {[%clk 0:02:12]}
23... Rg8 {[%clk 0:02:47.1]} 24. Rf4 {[%clk 0:02:12.2]} 24... Qf8 {[%clk
0:02:47.6]} 25. Rh4 {[%clk 0:01:57]} 25... Qxh6 {[%clk 0:02:47]} 26. Rxh6 {[%clk
0:01:56.7]} 26... Nd8 {[%clk 0:02:40.1]} 27. e5 {[%clk 0:01:50]} 27... Rb8
{[%clk 0:02:40.7]} 28. exd6 {[%clk 0:01:49.6]} 28... Be6 {[%clk 0:02:37]} 29.
Nd5 {[%clk 0:01:47.9]} 29... Bxd5 {[%clk 0:02:36.8]} 30. Bxd5 {[%clk 0:01:45.3]}
30... Ne6 {[%clk 0:02:37.3]} 31. Bxe6 {[%clk 0:01:41.1]} 31... fxe6 {[%clk
0:02:37.9]} 32. Re1 {[%clk 0:01:33.7]} 32... Rge8 {[%clk 0:02:36.9]} 33. f7
{[%clk 0:01:30.6]} 33... Rf8 {[%clk 0:02:36.4]} 34. Rxe6 {[%clk 0:01:28.8]}
34... Rxf7 {[%clk 0:02:36.1]} 35. Rexg6 {[%clk 0:01:27.4]} 35... Rbf8 {[%clk
0:02:33.6]} 36. Re6 {[%clk 0:01:23.4]} 36... Rd7 {[%clk 0:02:26.9]} 37. Re7
{[%clk 0:01:21]} 37... Rxe7 {[%clk 0:02:26.1]} 38. dxe7 {[%clk 0:01:21.2]} 38...
Re8 {[%clk 0:02:26.8]} 39. Rxb6 {[%clk 0:01:20.1]} 39... Rxe7 {[%clk 0:02:27.5]}
40. Rc6 {[%clk 0:01:19.8]} 40... Re3 {[%clk 0:02:26.5]} 41. Rxc5 {[%clk
0:01:17.2]} 41... Rxa3 {[%clk 0:02:27.1]} 42. b6 {[%clk 0:01:17.4]} 42... Rb3
{[%clk 0:02:26.5]} 43. Rb5 {[%clk 0:01:17.1]} 43... Rc3 {[%clk 0:02:23.8]} 44.
b7 {[%clk 0:01:16.5]} 44... Rxc4 {[%clk 0:02:24.7]} 45. b8=Q+ {[%clk 0:01:16.3]}
45... Kg7 {[%clk 0:02:25.6]} 46. Qd6 {[%clk 0:01:12.7]} 46... Rc1+ {[%clk
0:02:24.1]} 47. Kg2 {[%clk 0:01:12.3]} 47... Rc2+ {[%clk 0:02:25]} 48. Kh3
{[%clk 0:01:12.4]} 48... a4 {[%clk 0:02:24.6]} 49. Rb7+ {[%clk 0:01:11.8]} 49...
Kh8 {[%clk 0:02:22.4]} 50. Qf8# {[%clk 0:01:11.3]} 1-0

[Event "*** SCC Grand Prix: Titled Tuesday Blitz"]
[Site "Chess.com"]
[Date "2020.07.21"]
[Round "4"]
[White "GustavoJuarezF"]
[Black "kidagent"]
[Result "1-0"]
[WhiteElo "2019"]
[BlackElo "2203"]
[TimeControl "180+1"]
[EndTime "10:35:48 PDT"]
[Termination "GustavoJuarezF won by resignation"]

1. e4 {[%clk 0:03:00.9]} 1... c5 {[%clk 0:02:59.4]} 2. Nf3 {[%clk 0:02:59.4]}
2... d6 {[%clk 0:02:59.4]} 3. d4 {[%clk 0:02:59.6]} 3... cxd4 {[%clk 0:03:00.3]}
4. Nxd4 {[%clk 0:02:59.6]} 4... Nf6 {[%clk 0:03:00.9]} 5. f3 {[%clk 0:02:59.9]}
5... a6 {[%clk 0:03:00.1]} 6. c4 {[%clk 0:03:00]} 6... e5 {[%clk 0:02:59.6]} 7.
Nc2 {[%clk 0:02:58.6]} 7... Nc6 {[%clk 0:02:56.7]} 8. Be3 {[%clk 0:02:58.5]}
8... Be7 {[%clk 0:02:55.3]} 9. Nc3 {[%clk 0:02:58.5]} 9... Be6 {[%clk
0:02:55.1]} 10. Be2 {[%clk 0:02:58.4]} 10... O-O {[%clk 0:02:54.5]} 11. O-O
{[%clk 0:02:58.5]} 11... Rc8 {[%clk 0:02:54.2]} 12. Qd2 {[%clk 0:02:58.6]} 12...
Nd7 {[%clk 0:02:51.2]} 13. Rfd1 {[%clk 0:02:57.9]} 13... f5 {[%clk 0:02:49.2]}
14. exf5 {[%clk 0:02:48]} 14... Bxf5 {[%clk 0:02:48.5]} 15. Ne4 {[%clk
0:02:47.8]} 15... Bxe4 {[%clk 0:02:43.2]} 16. fxe4 {[%clk 0:02:46.8]} 16... Nf6
{[%clk 0:02:38.7]} 17. h3 {[%clk 0:02:31.5]} 17... Qd7 {[%clk 0:02:36]} 18. Bf3
{[%clk 0:02:23.2]} 18... Nd8 {[%clk 0:02:33.6]} 19. b3 {[%clk 0:02:21.7]} 19...
Ne6 {[%clk 0:02:32.8]} 20. Nb4 {[%clk 0:02:19.2]} 20... Kh8 {[%clk 0:02:29.3]}
21. Nd5 {[%clk 0:02:18.2]} 21... Nxd5 {[%clk 0:02:28.8]} 22. Qxd5 {[%clk
0:02:16.1]} 22... Nf4 {[%clk 0:02:29.4]} 23. Bxf4 {[%clk 0:02:13]} 23... exf4
{[%clk 0:02:25.1]} 24. e5 {[%clk 0:02:12.5]} 24... Rcd8 {[%clk 0:02:13.2]} 25.
c5 {[%clk 0:02:04]} 25... Qf5 {[%clk 0:01:47.3]} 26. cxd6 {[%clk 0:02:02.1]}
26... Bh4 {[%clk 0:01:45.6]} 27. e6 {[%clk 0:01:55.4]} 27... Qxd5 {[%clk
0:01:18.8]} 28. Rxd5 {[%clk 0:01:53.9]} 28... Rfe8 {[%clk 0:01:16.4]} 29. e7
{[%clk 0:01:46.9]} 29... Rd7 {[%clk 0:01:13.6]} 30. Rad1 {[%clk 0:01:37.6]} 1-0